bitfinex/quotes_ETHUSD_20240601
["timestamp","ask_amount","ask_price","bid_price","bid_amount"]
[1717242693777,2.63658,3792.8,3792.5,0.636]
[1717242694015,2.63658,3792.8,3792.7,0.636]
[1717242696603,2.63658,3792.8,3792.6,2.3328]
[1717242696798,2.63658,3792.8,3792.6,2.9688]
[1717242697007,3.0,3793.3,3792.6,2.9688]
[1717242697192,3.0,3793.3,3792.6,3.26568]
[1717242699020,2.4815,3793.2,3792.6,0.636]
[1717242704222,2.63637,3793.1,3792.6,0.636]
[1717242710710,2.63653,3792.9,3792.3,2.3328]
[1717242710910,2.63653,3792.9,3792.6,0.636]
[1717242712229,2.63653,3792.9,3792.3,2.3328]
[1717242712436,2.63653,3792.9,3792.4,0.636]
[1717242712637,2.63653,3792.9,3792.1,2.4168]
[1717242712887,2.93956004,3792.9,3791.8,2.4168]
[1717242713099,2.93956004,3792.9,3792.1,0.636]
[1717242714386,2.93956004,3792.9,3791.8,2.4168]
[1717242714587,2.93956004,3792.9,3792.2,0.636]
[1717242715768,2.63669,3792.7,3792.2,0.636]
[1717242733118,2.63686,3792.4,3791.6,9.9063]
[1717242733296,2.63686,3792.4,3792.0,0.636]
[1717242734512,2.63686,3792.4,3791.6,9.9063]
[1717242734825,2.63686,3792.4,3792.1,0.636]
[1717242736827,2.63686,3792.4,3791.9,0.636]
[1717242743726,2.63686,3792.4,3791.2,3.692973]
[1717242743938,2.63701,3792.2,3791.9,0.636]
[1717242748131,2.63669,3792.7,3792.1,0.636]
[1717242748930,2.63669,3792.7,3792.3,0.636]
[1717242751833,2.63669,3792.7,3792.1,0.636]
[1717242757144,2.63669,3792.7,3792.3,0.636]
[1717242758144,4.94629,3792.7,3792.3,0.636]
[1717242762899,4.94629,3792.7,3792.1,0.636]
[1717242765858,4.94629,3792.7,3792.2,0.636]
[1717242769180,4.94629,3792.7,3791.8,2.4583]
[1717242769454,4.94629,3792.7,3792.1,0.636]
[1717242770445,4.94629,3792.7,3791.4,2.3541]
[1717242770446,5.02033,3792.3,3791.4,2.3541]
[1717242770650,5.02033,3792.3,3792.1,0.636]
[1717242776314,5.02033,3792.3,3791.4,2.3541]
[1717242776493,5.02033,3792.3,3791.9,0.636]
[1717242776786,5.02033,3792.3,3792.1,0.636]
[1717242781532,5.02033,3792.3,3791.9,0.636]
[1717242782335,5.02033,3792.3,3791.2,7.71504236]
[1717242782534,5.02033,3792.3,3791.7,0.636]
[1717242785135,2.63706,3792.1,3791.7,0.636]
[1717242785858,2.63706,3792.1,3791.1,9.04714]
[1717242786163,2.63706,3792.1,3791.7,0.636]
[1717242787630,3.0,3793.3,3791.5,0.636]
[1717242787631,2.63721,3791.9,3791.5,0.636]
[1717242788201,2.63721,3791.9,3791.0,7.43]
[1717242788202,2.63721,3791.9,3791.4,0.636]
[1717242794743,2.63721,3791.9,3791.0,7.43]
[1717242794938,2.63742,3791.6,3791.0,7.43]
[1717242795142,2.63742,3791.6,3791.3,0.636]
[1717242797243,2.63754,3791.4,3791.3,0.636]
[1717242797412,2.63754,3791.4,3791.0,0.636]
[1717242799638,2.63754,3791.4,3790.6,7.43]
[1717242799830,2.63754,3791.4,3791.1,0.636]
[1717242814476,2.63754,3791.4,3790.6,7.43]
[1717242814801,2.63754,3791.4,3790.9,0.636]
[1717242817973,2.63754,3791.4,3790.6,7.43]
[1717242818303,2.63754,3791.4,3790.5,2.3929]
[1717242818304,2.63754,3791.4,3790.9,0.636]
[1717242819309,2.63754,3791.4,3790.5,2.3929]
[1717242819611,2.4598,3791.3,3790.9,0.636]
[1717242835821,2.63754,3791.4,3790.9,3.0282]
[1717242836025,2.63754,3791.4,3791.3,0.636]
[1717242840042,2.63754,3791.4,3790.9,2.3922]
[1717242840208,2.63754,3791.4,3791.2,0.636]
[1717242840412,2.63754,3791.4,3790.9,2.3922]
[1717242840615,2.63754,3791.4,3791.2,0.636]
[1717242850249,2.63754,3791.4,3790.6,9.8222]
[1717242850417,2.63754,3791.4,3791.1,0.636]
[1717242858731,2.63754,3791.4,3791.3,0.636]
[1717242859062,2.3903,3791.7,3791.3,0.636]
[1717242859269,2.3903,3791.7,3791.5,0.636]
[1717242864647,2.63724,3791.9,3791.5,0.636]
[1717242874880,2.63724,3791.9,3791.3,0.636]
[1717242878336,2.63724,3791.9,3791.0,2.4796]
[1717242878480,2.301,3791.8,3791.3,0.636]
[1717242878670,2.63734,3791.7,3791.1,0.636]
[1717242896721,2.428,3791.6,3791.1,0.636]
[1717242908927,0.83275409,3792.2,3790.8,0.636]
[1717242908928,2.63767,3791.3,3790.8,0.636]
[1717242909226,2.4389,3791.2,3790.6,8.066]
[1717242909444,2.63779,3791.1,3790.6,8.066]
[1717242910352,2.63779,3791.1,3790.8,0.636]
[1717242912309,2.63779,3791.1,3791.0,0.636]
[1717242917318,2.4389,3791.4,3790.9,0.636]
[1717242917499,2.4389,3791.8,3790.9,2.2654]
[1717242917704,2.4389,3791.8,3790.1,4.1187698]
[1717242917705,2.4389,3792.0,3791.5,0.636]
[1717242922412,2.63723,3791.9,3791.1,2.2654]
[1717242922742,5.07641,3791.5,3791.1,0.636]
[1717242922930,5.07641,3791.5,3791.0,0.636]
[1717242923834,2.63782,3791.0,3790.4,2.2654]
[1717242924038,2.63782,3791.0,3790.7,0.636]
[1717242924652,2.63782,3791.0,3790.0,2.2654]
[1717242924851,2.63782,3791.0,3790.7,0.636]
[1717242925916,2.63782,3791.0,3790.3,0.636]
[1717242926120,2.63797,3790.8,3790.3,0.636]
[1717242927570,5.778,3792.1,3789.7,8.485753]
[1717242927571,5.07704,3790.6,3790.2,0.636]
[1717242929866,5.07704,3790.6,3790.1,0.636]
[1717242931226,5.07704,3790.6,3789.6,2.2654]
[1717242931468,5.07704,3790.6,3790.0,0.636]
[1717242933871,5.07704,3790.6,3789.6,2.2654]
[1717242934066,5.07704,3790.6,3790.1,0.636]
[1717242938344,5.07704,3790.6,3790.2,0.636]
[1717242949591,2.63814,3790.6,3790.2,0.636]
[1717242956987,2.61569445,3790.6,3790.2,0.636]
[1717242986631,2.4818,3790.5,3789.5,5.92399351]
[1717242986836,2.4818,3790.5,3789.7,0.636]
[1717242987049,2.4818,3790.5,3789.8,0.636]
[1717242988017,2.63826,3790.4,3789.8,0.636]
[1717242988751,2.3648,3790.3,3789.8,0.636]
[1717242991548,2.3648,3790.3,3789.4,7.43]
[1717242991758,2.3648,3790.3,3789.8,0.636]
[1717242992336,2.63841,3790.2,3789.4,7.43]
[1717242992517,2.63841,3790.2,3789.6,0.636]
[1717242992518,2.3648,3790.1,3789.6,0.636]
[1717242993151,2.3648,3790.1,3789.4,7.43]
[1717242993359,2.3648,3790.1,3789.6,0.636]
[1717242997547,2.3648,3790.1,3789.0,9.27617816]
[1717242997732,2.3648,3790.1,3789.7,0.636]
[1717242999035,0.05277239,3790.0,3789.7,0.636]
[1717242999239,2.3648,3790.1,3789.7,0.636]
[1717242999441,2.63853,3790.0,3789.1,2.2959]
[1717242999644,2.63853,3790.0,3789.6,0.636]
[1717243001570,2.3648,3789.9,3789.1,2.2959]
[1717243001871,2.3648,3789.9,3789.5,0.636]
[1717243004144,2.3648,3789.9,3789.1,2.2959]
[1717243004341,2.3648,3789.9,3789.5,0.636]
[1717243039591,2.3648,3789.9,3789.1,2.2959]
[1717243039795,2.3648,3789.9,3789.4,0.636]
[1717243055252,2.3648,3789.9,3789.0,2.63915]
[1717243055551,2.3648,3789.9,3789.4,0.636]
[1717243066356,2.63869,3789.8,3789.4,0.636]
[1717243066663,2.3236,3789.7,3789.2,0.636]
[1717243067657,2.3236,3789.7,3788.9,7.43]
[1717243067818,2.3236,3789.7,3789.3,0.636]
[1717243072420,2.3236,3789.7,3788.9,7.43]
[1717243072662,2.3876,3789.5,3789.0,0.636]
[1717243074861,2.3876,3789.5,3788.9,7.43]
[1717243075078,2.3876,3789.5,3788.9,8.066]
[1717243075588,2.3876,3789.5,3788.9,7.43]
[1717243075724,2.3876,3789.5,3788.9,8.066]
[1717243075929,2.3876,3789.5,3788.9,0.636]
[1717243078060,2.63896,3789.4,3788.9,0.636]
[1717243078431,2.3876,3789.3,3788.9,0.636]
[1717243081063,2.63907,3789.2,3788.8,0.636]
[1717243084448,2.63907,3789.2,3788.4,2.4156]
[1717243084772,2.63907,3789.2,3788.8,0.636]
[1717243086184,2.3876,3789.1,3788.7,0.636]
[1717243092700,2.63923,3789.0,3788.1,3.0]
[1717243092922,2.63923,3789.0,3788.6,0.636]
[1717243093063,2.2871,3788.9,3788.0,3.696078]
[1717243093263,2.2871,3788.9,3788.6,0.636]
[1717243104312,2.2871,3788.9,3788.1,2.2922]
[1717243104611,2.2871,3788.9,3788.6,0.636]
[1717243116839,2.25207746,3788.9,3788.6,0.636]
[1717243118036,2.25207746,3788.9,3787.9,0.28528235]
[1717243118205,2.25207746,3788.9,3788.2,0.636]
[1717243118531,2.25207746,3788.9,3787.8,8.12828389]
[1717243118532,2.25207746,3788.9,3788.4,0.636]
[1717243127233,2.63923,3789.0,3788.6,0.636]
[1717243133655,2.63923,3789.0,3788.2,2.454]
[1717243133837,2.63923,3789.0,3788.5,0.636]
[1717243139769,2.63923,3789.0,3788.5,0.945]
[1717243140565,2.63923,3789.0,3788.5,0.309]
[1717243143467,2.63923,3789.0,3788.4,0.636]
[1717243176287,2.63923,3789.0,3788.3,0.636]
[1717243179226,2.63923,3789.0,3788.0,2.3066]
[1717243179519,2.63923,3789.0,3788.4,0.636]
[1717243191237,2.63923,3789.0,3788.0,2.3066]
[1717243191422,2.2826,3788.9,3788.4,0.636]
[1717243204513,2.3942,3789.2,3788.5,0.05278973]
[1717243204854,3.0,3789.9,3789.1,0.636]
[1717243204855,2.3942,3789.9,3789.1,0.636]
[1717243205062,2.63856,3790.0,3789.7,0.636]
[1717243205762,2.63856,3790.0,3789.0,7.43]
[1717243205763,2.3942,3789.6,3789.0,7.43]
[1717243205960,2.3942,3789.6,3789.0,8.066]
[1717243206115,2.3942,3789.6,3789.0,7.43]
[1717243206320,2.3942,3789.4,3789.0,7.43]
[1717243206632,2.961111,3789.4,3789.0,7.43]
[1717243206827,2.3942,3789.4,3789.0,7.43]
[1717243208023,2.63891,3789.5,3789.1,0.636]
[1717243211245,2.63891,3789.5,3789.0,0.636]
[1717243212061,2.63929,3788.9,3788.4,7.43]
[1717243212267,0.498899,3788.8,3788.4,0.636]
[1717243212468,2.63929,3788.9,3788.4,0.636]
[1717243212941,2.63929,3788.9,3788.6,0.636]
[1717243214837,2.63929,3788.9,3788.5,0.636]
[1717243221380,2.63929,3788.9,3787.9,2.3959]
[1717243221581,2.63954,3788.6,3787.7,7.43]
[1717243221753,2.63954,3788.6,3788.1,0.636]
[1717243224483,2.2598,3788.5,3787.7,7.43]
[1717243224643,2.2598,3788.5,3788.2,0.636]
[1717243225042,2.63963,3788.4,3788.2,0.636]
[1717243226857,2.63963,3788.4,3788.0,0.636]
[1717243230068,2.63963,3788.4,3788.2,0.636]
[1717243239573,2.63963,3788.4,3788.0,0.636]
[1717243239775,2.3169,3788.3,3788.0,0.636]
[1717243240159,2.3169,3788.3,3787.4,1.056373]
[1717243240464,2.63978,3788.2,3787.8,0.636]
[1717243243697,2.63978,3788.2,3787.9,0.636]
[1717243243999,2.63978,3788.2,3787.8,0.636]
[1717243246678,2.63978,3788.2,3787.2,0.28534737]
[1717243246882,2.4131,3787.8,3787.1,7.43]
[1717243249189,2.64015,3787.7,3787.2,0.636]
[1717243250470,2.64015,3787.7,3787.1,7.43]
[1717243251306,2.64015,3787.7,3787.2,0.636]
[1717243255710,2.64015,3787.7,3787.4,0.636]
[1717243257798,2.2917,3788.1,3787.4,0.636]
[1717243258028,2.63981,3788.2,3787.8,0.636]
[1717243260194,2.2917,3788.1,3787.0,2.74898709]
[1717243260400,2.2917,3788.1,3787.5,0.636]
[1717243260838,2.63993,3788.0,3787.0,0.41318709]
[1717243261214,2.63993,3788.0,3787.3,0.636]
[1717243261827,2.63993,3788.0,3787.0,0.41318709]
[1717243261828,2.63993,3788.0,3787.5,0.636]
[1717243262033,2.63993,3788.0,3787.0,0.41318709]
[1717243262034,2.63993,3788.0,3787.3,0.636]
[1717243262733,2.64008,3787.8,3787.0,0.41318709]
[1717243263027,2.64008,3787.8,3787.2,0.636]
[1717243263435,2.64008,3787.8,3787.6,0.636]
[1717243265394,2.63975,3788.3,3787.6,0.636]
[1717243265597,2.63975,3788.3,3787.3,2.2633]
[1717243265598,2.63975,3788.3,3787.9,0.636]
[1717243275355,2.63975,3788.3,3787.8,2.488]
[1717243275683,2.63975,3788.3,3787.9,0.636]
[1717243276882,2.63939,3788.8,3788.1,0.636]
[1717243277079,2.63939,3788.8,3788.2,0.636]
[1717243277080,3.438229,3788.8,3788.2,0.636]
[1717243277359,2.63939,3788.8,3788.2,0.636]
[1717243277578,2.63939,3788.8,3788.4,0.636]
[1717243278346,2.63939,3788.8,3787.8,2.488]
[1717243278650,2.63939,3788.8,3788.2,0.636]
[1717243279012,2.63939,3788.8,3787.8,2.488]
[1717243279218,2.63939,3788.8,3788.0,0.636]
[1717243279644,2.63939,3788.8,3787.8,2.488]
[1717243279853,2.63939,3788.8,3788.1,0.636]
[1717243280021,2.63951,3788.6,3788.1,0.636]
[1717243283842,2.63951,3788.6,3788.3,0.636]
[1717243290890,2.63951,3788.6,3788.1,0.636]
[1717243296979,2.63951,3788.6,3787.8,2.488]
[1717243297174,2.63951,3788.6,3788.2,0.636]
[1717243298544,2.4826,3788.5,3788.2,0.636]
[1717243303884,2.63951,3788.6,3788.2,0.636]
[1717243304110,2.63951,3788.6,3788.4,0.636]
[1717243306976,2.63951,3788.6,3787.8,2.488]
[1717243307303,2.63951,3788.6,3788.3,0.636]
[1717243317561,2.63951,3788.6,3788.4,0.636]
[1717243322149,2.63919,3789.1,3788.4,0.636]
[1717243322467,2.63919,3789.1,3788.6,0.636]
[1717243326385,2.4073,3789.0,3788.6,0.636]
[1717243326539,2.93273918,3789.0,3788.6,0.636]
[1717243331085,2.93273918,3789.0,3788.4,0.636]
[1717243332685,2.93273918,3789.0,3788.1,2.4201]
[1717243332897,2.4073,3789.0,3788.5,0.636]
[1717243335503,2.63919,3789.1,3788.5,0.636]
[1717243335504,2.63919,3789.1,3788.8,0.636]
[1717243335805,2.63919,3789.1,3788.5,2.4768]
[1717243336005,2.63919,3789.1,3789.0,0.636]
[1717243337669,2.63919,3789.1,3788.8,0.636]
[1717243340983,2.63929,3788.9,3788.3,7.43]
[1717243341201,2.63929,3788.9,3788.6,0.636]
[1717243341402,2.63929,3788.9,3788.3,7.43]
[1717243341682,2.63929,3788.9,3788.6,0.636]
[1717243343119,2.63929,3788.9,3788.3,7.43]
[1717243343483,2.63929,3788.9,3788.6,0.636]
[1717243344516,2.63929,3788.9,3788.3,7.43]
[1717243345034,2.63929,3788.9,3788.5,0.636]
[1717243351739,2.2842,3788.8,3788.5,0.636]
[1717243352035,2.63942,3788.7,3788.4,0.636]
[1717243352533,2.63942,3788.7,3787.8,9.9068]
[1717243352846,2.63942,3788.7,3788.3,0.636]
[1717243353499,2.63942,3788.7,3787.8,2.4768]
[1717243353703,2.63942,3788.7,3787.5,3.0]
[1717243353925,2.63958,3788.5,3788.2,0.636]
[1717243354142,3.131958,3788.5,3788.2,0.636]
[1717243354432,2.63958,3788.5,3788.2,0.636]
[1717243391053,2.63958,3788.5,3788.0,0.636]
[1717243404460,2.63958,3788.5,3788.2,0.636]
[1717243405663,2.63958,3788.5,3788.4,0.636]
[1717243406925,2.63927,3789.0,3788.4,0.636]
[1717243407102,2.63927,3789.0,3788.6,0.636]
[1717243407403,0.497027,3788.9,3788.6,0.636]
[1717243409102,2.63927,3789.0,3788.6,0.636]
[1717243412701,2.63927,3789.0,3788.8,0.636]
[1717243414787,0.21232458,3789.3,3788.8,0.636]
[1717243415098,0.21232458,3789.3,3789.0,0.636]
[1717243416110,0.21232458,3789.3,3789.2,0.636]
[1717243418541,0.21232458,3789.3,3789.2,0.93462]
[1717243428969,2.63856,3790.0,3789.2,3.41422]
[1717243429170,2.63856,3790.0,3789.0,2.63919]
[1717243429171,2.63856,3790.0,3789.9,0.636]
[1717243441556,0.22361012,3791.1,3789.9,0.636]
[1717243441757,0.22361012,3791.1,3789.6,2.4796]
[1717243441758,0.22361012,3791.1,3791.0,0.636]
[1717243442022,2.2858,3791.5,3790.5,2.4796]
[1717243442448,2.2858,3791.5,3791.2,0.636]
[1717243447471,2.63754,3791.4,3790.3,7.43]
[1717243447677,2.2781,3791.3,3790.8,0.636]
[1717243449777,2.2781,3791.3,3791.0,0.636]
[1717243451433,2.2781,3791.3,3790.3,7.43]
[1717243451732,2.2781,3791.3,3790.9,0.636]
[1717243457133,2.69047239,3791.2,3790.9,0.636]
[1717243457336,2.6377,3791.2,3790.9,0.636]
[1717243457827,2.6377,3791.2,3790.7,0.636]
[1717243461956,2.6377,3791.2,3790.9,0.636]
[1717243467354,2.373,3791.5,3790.9,0.636]
[1717243468049,2.373,3791.5,3791.1,0.636]
[1717243468463,5.12419148,3791.7,3791.3,0.636]
[1717243468653,5.12419148,3791.7,3791.1,0.636]
[1717243472095,5.12419148,3791.7,3790.7,2.3129]
[1717243472370,5.12419148,3791.7,3791.0,0.636]
[1717243478782,2.84309148,3791.7,3791.3,0.636]
[1717243487597,2.84309148,3791.7,3791.1,0.636]
[1717243490575,2.84309148,3791.7,3790.6,2.3266]
[1717243490767,2.84309148,3791.7,3791.1,0.636]
[1717243494280,2.63738,3791.7,3791.3,0.636]
[1717243494480,2.63738,3791.7,3790.8,2.3266]
[1717243494481,2.63738,3791.7,3791.5,0.636]
[1717243499638,2.2811,3791.9,3791.5,0.636]
[1717243499926,5.06543,3792.2,3791.8,0.636]
[1717243501722,5.06543,3792.2,3791.6,0.636]
[1717243501881,2.63718,3792.0,3790.8,2.63794]
[1717243502086,2.4284,3791.9,3790.8,2.63794]
[1717243502381,2.63727,3791.8,3791.2,0.636]
[1717243503625,2.63727,3791.8,3790.8,2.63794]
[1717243503821,2.63727,3791.8,3791.3,0.636]
[1717243504189,2.63727,3791.8,3791.2,0.636]
[1717243513124,2.63727,3791.8,3791.4,0.636]
[1717243515120,2.63727,3791.8,3791.6,0.636]
[1717243517410,2.4642,3792.1,3791.6,0.636]
[1717243517603,2.63698,3792.3,3791.6,0.636]
[1717243518046,2.63698,3792.3,3791.3,2.4101]
[1717243518224,2.63698,3792.3,3791.5,0.636]
[1717243521667,2.63698,3792.3,3791.7,0.636]
[1717243523759,2.63698,3792.3,3791.9,0.636]
[1717243525554,2.63617,3793.4,3792.3,2.3493]
[1717243525754,2.63617,3793.4,3792.9,0.636]
[1717243526669,10.06578,3794.0,3792.9,0.636]
[1717243528641,10.06578,3794.0,3792.9,2.8984]
[1717243530497,2.63578,3794.0,3792.9,2.8984]
[1717243532978,2.63578,3794.0,3792.9,2.2624]
[1717243533280,2.63578,3794.0,3792.9,2.8984]
[1717243535989,2.63578,3794.0,3792.9,2.2624]
[1717243536190,2.63578,3794.0,3792.9,2.8984]
[1717243539791,2.63541,3794.5,3792.9,2.8984]
[1717243540091,2.63541,3794.5,3792.9,5.8984]
[1717243547275,2.63541,3794.5,3792.9,5.2624]
[1717243547470,2.63541,3794.5,3792.9,2.8984]
[1717243547670,2.63541,3794.5,3792.9,5.8984]
[1717243549298,2.63541,3794.5,3792.9,6.4484]
[1717243551487,2.2684,3794.6,3793.5,2.396]
[1717243551706,2.2684,3794.6,3794.4,0.636]
[1717243555302,2.2684,3794.6,3794.5,0.636]
[1717243557301,0.21872548,3795.0,3794.5,0.636]
[1717243557476,2.63491,3795.2,3794.7,0.636]
[1717243557876,2.2777,3794.8,3794.7,0.636]
[1717243560226,2.63491,3795.2,3794.7,0.636]
[1717243560395,2.63491,3795.2,3794.2,2.63558]
[1717243560396,2.2777,3795.0,3794.2,2.63558]
[1717243560593,2.2777,3795.0,3794.8,0.636]
[1717243561627,2.2777,3795.0,3794.2,2.63558]
[1717243561928,0.002079,3795.7,3794.8,5.41318]
[1717243562227,0.002079,3795.7,3794.8,8.03118]
[1717243562525,0.002079,3795.7,3794.8,8.686607]
[1717243562729,0.002079,3795.7,3794.8,6.290607]
[1717243562887,0.002079,3795.7,3794.8,6.376607]
[1717243563638,0.002079,3795.7,3794.8,3.376607]
[1717243564343,0.002079,3795.7,3794.8,2.740607]
[1717243564520,0.002079,3795.7,3794.8,3.6506677]
[1717243568804,0.002079,3795.7,3794.8,3.0146677]
[1717243569006,0.002079,3795.7,3794.8,3.6506677]
[1717243569824,0.002079,3795.7,3794.8,3.0146677]
[1717243570024,0.002079,3795.7,3794.8,1.0154877]
[1717243570202,0.002079,3795.7,3794.8,0.741427]
[1717243572535,2.4832,3795.2,3794.8,0.741427]
[1717243579866,2.4832,3795.6,3794.8,0.741427]
[1717243580558,0.002079,3795.7,3794.8,0.741427]
[1717243583322,2.4176,3795.3,3794.8,0.105427]
[1717243583523,2.4176,3795.3,3794.8,0.741427]
[1717243585584,2.4176,3795.3,3794.8,0.105427]
[1717243585762,2.4176,3795.3,3794.8,0.741427]
[1717243585960,2.4176,3795.3,3794.8,0.105427]
[1717243586165,2.4176,3795.3,3794.8,0.741427]
[1717243586578,2.4176,3795.3,3794.8,0.105427]
[1717243587188,2.4176,3795.3,3794.8,0.741427]
[1717243587789,2.63506,3795.0,3794.8,0.105427]
[1717243588095,2.4176,3795.3,3794.8,0.105427]
[1717243589752,2.63472,3795.5,3794.8,0.105427]
[1717243589963,2.4596,3795.6,3794.8,0.105427]
[1717243590499,2.4596,3795.6,3794.8,0.4431057]
[1717243592605,2.4596,3795.6,3794.8,1.0791057]
[1717243601423,0.002079,3795.7,3794.8,1.0791057]
[1717243612235,2.3814,3795.4,3794.8,1.0791057]
[1717243618253,2.3814,3795.4,3794.8,0.105427]
[1717243618440,2.3814,3795.4,3794.8,0.741427]
[1717243620232,2.3958638,3794.9,3794.8,0.741427]
[1717243622489,2.3958638,3794.9,3794.8,0.105427]
[1717243622647,2.3958638,3794.9,3794.8,0.741427]
[1717243623656,0.0144638,3794.9,3794.8,0.741427]
[1717243624237,0.0144638,3794.9,3794.8,1.0790977]
[1717243629181,0.0144638,3794.9,3794.8,0.741427]
[1717243634286,0.0144638,3794.9,3794.8,0.105427]
[1717243634590,0.0144638,3794.9,3794.8,0.741427]
[1717243636086,2.3772638,3794.9,3794.8,0.741427]
[1717243638066,2.3772638,3794.9,3794.8,0.105427]
[1717243640204,2.87848318,3794.9,3794.8,0.105427]
[1717243640421,2.3628,3794.2,3794.1,7.43]
[1717243641018,2.63569,3794.1,3793.6,0.636]
[1717243643295,2.63569,3794.1,3793.2,7.43]
[1717243643490,2.63569,3794.1,3793.6,0.636]
[1717243645594,2.63569,3794.1,3793.2,7.43]
[1717243645819,2.63569,3794.1,3793.5,0.636]
[1717243649937,2.63569,3794.1,3793.2,7.43]
[1717243650136,2.63585,3793.9,3793.5,0.636]
[1717243655213,2.63585,3793.9,3793.2,7.43]
[1717243655412,2.63585,3793.9,3793.5,0.636]
[1717243656245,2.2535,3794.0,3793.2,7.43]
[1717243656452,2.63582,3793.9,3793.3,0.636]
[1717243659157,2.63582,3793.9,3792.8,3.400471]
[1717243659366,2.63582,3793.9,3793.4,0.636]
[1717243659673,3.51568318,3794.9,3792.3,7.43]
[1717243659674,2.63626,3793.3,3792.7,1.054899]
[1717243659878,2.2535,3793.2,3792.7,1.054899]
[1717243660025,2.2535,3793.2,3792.7,0.636]
[1717243660650,2.2535,3793.2,3792.9,0.636]
[1717243661026,2.2535,3793.2,3792.3,7.43]
[1717243661241,2.2535,3793.2,3792.7,0.636]
[1717243663328,2.2535,3793.2,3792.3,7.43]
[1717243663525,2.2535,3793.2,3792.7,0.636]
[1717243674693,2.63638,3793.1,3792.6,0.636]
[1717243676451,2.63638,3793.1,3792.3,7.43]
[1717243676452,2.63638,3793.1,3792.8,0.636]
[1717243679001,2.4284,3793.4,3792.8,0.636]
[1717243680201,2.63625,3793.3,3792.3,7.43]
[1717243680411,2.63625,3793.3,3792.6,0.636]
[1717243687201,2.3616,3793.0,3792.5,0.636]
[1717243687403,2.3616,3793.0,3792.4,0.636]
[1717243690767,2.63652,3792.9,3792.4,0.636]
[1717243690967,2.63652,3792.9,3792.3,7.43]
[1717243691604,2.63652,3792.9,3792.2,0.636]
[1717243692494,2.4041,3792.8,3792.2,0.636]
[1717243696117,2.4041,3792.8,3792.4,0.636]
[1717243696291,2.63652,3792.9,3792.4,0.636]
[1717243696500,2.63652,3792.9,3792.8,0.636]
[1717243696818,5.04031,3793.4,3792.8,0.636]
[1717243696988,0.504031,3793.3,3792.8,0.636]
[1717243697190,5.04031,3793.4,3792.8,0.636]
[1717243700510,2.63621,3793.4,3793.0,0.636]
[1717243704110,4.96065,3793.9,3793.2,0.636]
[1717243704313,3.0,3793.8,3793.2,0.636]
[1717243712947,2.63596,3793.7,3793.2,0.636]
[1717243717946,2.63596,3793.7,3793.6,0.636]
[1717243719610,2.63565,3794.2,3793.6,0.636]
[1717243721053,2.63565,3794.2,3793.4,0.636]
[1717243730566,2.63565,3794.2,3793.3,3.044]
[1717243730750,2.63575,3794.0,3793.3,0.636]
[1717243731257,2.63575,3794.0,3793.1,8.066]
[1717243732570,2.63575,3794.0,3793.1,0.636]
[1717243733166,2.2738,3793.9,3793.1,0.636]
[1717243737164,2.2738,3793.9,3793.3,0.636]
[1717243737949,2.63588,3793.8,3793.3,0.636]
[1717243740860,2.63588,3793.8,3793.1,0.636]
[1717243741085,2.63607,3793.6,3792.7,7.43]
[1717243741243,2.2738,3793.5,3793.0,0.636]
[1717243741767,2.63607,3793.6,3793.0,0.636]
[1717243746175,3.2397525,3793.6,3792.7,7.43]
[1717243746357,2.63621,3793.4,3792.7,7.43]
[1717243746574,2.63621,3793.4,3792.7,8.066]
[1717243747660,2.63621,3793.4,3792.9,0.636]
[1717243754100,2.4581,3793.6,3793.0,0.636]
[1717243754274,5.09394,3793.9,3793.1,2.4784]
[1717243754479,5.09394,3793.9,3793.4,0.636]
[1717243754677,2.63584,3793.9,3793.4,0.636]
[1717243755902,2.63584,3793.9,3793.1,2.4784]
[1717243756120,2.63584,3793.9,3793.3,0.636]
[1717243767606,2.4792,3793.8,3793.3,0.636]
[1717243775729,2.4792,3793.8,3793.1,3.1144]
[1717243776223,2.2633,3793.6,3792.7,7.43]
[1717243776425,2.2633,3793.6,3792.8,0.636]
[1717243778011,2.63612,3793.5,3792.8,0.636]
[1717243784515,2.63612,3793.5,3792.4,2.6368]
[1717243784516,2.63612,3793.5,3793.0,3.0053]
[1717243784745,2.63612,3793.5,3793.2,0.636]
[1717243785121,2.61806716,3793.5,3793.2,0.636]
[1717243786029,2.61806716,3793.5,3793.0,0.636]
[1717243788960,2.2633,3793.6,3793.0,0.636]
[1717243789160,2.2633,3793.6,3793.2,0.636]
[1717243791850,2.63576,3794.0,3793.2,0.636]
[1717243792033,2.3099,3793.8,3793.2,0.636]
[1717243795223,2.63597,3793.7,3793.0,0.636]
[1717243798761,2.3099,3793.6,3792.6,2.4922]
[1717243798941,0.05277239,3793.5,3793.0,0.636]
[1717243799343,2.63612,3793.5,3792.9,0.636]
[1717243799662,2.3099,3793.4,3792.9,0.636]